bitfinex/quotes_SOLUSD_20251007
["timestamp","ask_amount","ask_price","bid_price","bid_amount"]
[1759815709099,0.88,234.91,234.86,0.71]
[1759815709614,5.13695576,234.91,234.86,0.71]
[1759815709988,4.45695576,234.91,234.86,0.71]
[1759815710188,4.45695576,234.91,234.87,30.63]
[1759815710598,0.68,234.9,234.88,29.94]
[1759815711401,0.68,234.89,234.88,29.94]
[1759815712239,4.25713377,234.9,234.88,29.94]
[1759815712421,0.68,234.89,234.88,29.94]
[1759815712590,4.25713377,234.9,234.88,29.94]
[1759815712789,4.93713377,234.9,234.88,29.94]
[1759815713318,4.25713377,234.9,234.88,29.94]
[1759815713618,4.93713377,234.9,234.88,29.94]
[1759815714791,0.68,234.89,234.83,20.8]
[1759815714998,0.68,234.89,234.82,21.51]
[1759815715209,0.68,234.89,234.83,29.92]
[1759815715611,4.93748551,234.89,234.83,29.92]
[1759815716119,0.68,234.88,234.83,29.92]
[1759815716491,0.68,234.88,234.83,30.63]
[1759815716716,0.68,234.88,234.84,0.71]
[1759815718516,4.93749452,234.88,234.83,29.92]
[1759815718726,4.25749452,234.88,234.82,20.8]
[1759815718915,0.68,234.87,234.83,29.92]
[1759815719423,0.68,234.87,234.83,30.63]
[1759815720019,4.93768279,234.87,234.82,20.8]
[1759815720223,0.68,234.86,234.84,29.92]
[1759815720411,0.68,234.86,234.82,20.8]
[1759815720606,4.93713069,234.9,234.83,30.63]
[1759815721113,4.25713069,234.9,234.83,30.63]
[1759815721303,0.66,234.89,234.83,30.63]
[1759815721705,0.66,234.88,234.83,30.63]
[1759815722006,0.66,234.87,234.83,30.63]
[1759815722619,0.66,234.87,234.83,30.64]
[1759815723132,0.66,234.89,234.83,34.89839535]
[1759815724425,0.2,234.91,234.86,20.8]
[1759815724717,0.2,234.91,234.9,20.8]
[1759815724933,0.2,234.91,234.9,21.52]
[1759815726013,0.2,234.91,234.86,20.8]
[1759815726220,0.2,234.91,234.83,10.64599923]
[1759815726221,0.2,234.91,234.9,20.8]
[1759815726410,0.2,234.91,234.9,50.72]
[1759815727807,0.2,234.91,234.9,51.44]
[1759815729233,0.2,234.91,234.9,50.72]
[1759815729447,0.2,234.91,234.9,51.44]
[1759815731920,0.2,234.91,234.9,55.69713069]
[1759815736116,0.2,234.91,234.9,51.44]
[1759815736632,0.2,234.91,234.9,55.69713069]
[1759815741438,0.2,234.91,234.88,4.25551986]
[1759815741656,0.66,234.9,234.89,29.92]
[1759815741815,0.66,234.9,234.88,20.8]
[1759815742013,0.66,234.89,234.87,20.8]
[1759815742328,0.66,234.88,234.82,8.51494621]
[1759815742514,0.66,234.88,234.86,20.8]
[1759815742712,0.66,234.88,234.87,29.92]
[1759815746041,0.2,234.91,234.87,29.92]
[1759815746258,0.66,234.9,234.87,29.92]
[1759815746612,0.66,234.9,234.89,20.8]
[1759815746824,0.2,234.91,234.89,29.92]
[1759815747023,0.66,234.9,234.89,29.92]
[1759815748951,0.2,234.91,234.89,30.64]
[1759815749155,0.2,234.91,234.9,0.72]
[1759815750739,0.2,234.91,234.9,4.97713069]
[1759815752258,0.2,234.91,234.9,25.77713069]
[1759815752435,0.2,234.91,234.9,55.69713069]
[1759815754531,0.78,235.02,234.9,66.33995742]
[1759815754729,4.35496085,235.02,234.91,0.72]
[1759815754932,0.68,235.01,234.95,20.8]
[1759815755132,0.68,235.01,234.96,29.92]
[1759815755524,0.68,235.0,234.96,29.92]
[1759815755727,0.68,234.99,234.96,29.92]
[1759815755923,0.68,234.98,234.96,29.92]
[1759815756255,4.35496085,235.02,234.96,29.92]
[1759815756425,0.68,234.97,234.96,29.92]
[1759815757038,0.68,234.97,234.9,4.97705337]
[1759815757232,14.99235341,235.02,234.91,50.72]
[1759815757233,0.66,234.96,234.91,50.72]
[1759815757444,0.66,234.95,234.91,50.72]
[1759815757824,0.66,234.97,234.91,55.64690849]
[1759815758130,0.66,234.96,234.91,54.97690849]
[1759815758330,0.66,234.95,234.91,54.97690849]
[1759815758949,0.66,234.95,234.91,50.72]
[1759815759449,4.25570324,234.98,234.91,50.72]
[1759815759646,0.66,234.97,234.89,20.8]
[1759815759825,4.91587747,234.97,234.93,20.8]
[1759815760030,0.66,234.96,234.94,29.9]
[1759815760233,4.25587747,234.97,234.94,29.9]
[1759815760234,0.66,234.99,234.94,29.9]
[1759815760546,0.66,235.01,234.95,0.67]
[1759815760755,0.66,235.01,234.96,29.9]
[1759815760940,0.66,235.0,234.96,29.9]
[1759815761331,4.2551947,235.01,234.96,29.9]
[1759815761528,0.66,234.99,234.96,29.9]
[1759815762827,0.66,234.98,234.97,29.9]
[1759815763028,4.2551947,235.01,234.97,29.9]
[1759815763253,0.66,234.98,234.9,21.47]
[1759815763554,0.66,234.98,234.94,20.8]
[1759815763742,0.66,234.98,234.95,29.9]
[1759815763941,4.2551947,235.01,234.95,29.9]
[1759815764242,0.66,234.97,234.95,29.9]
[1759815764835,0.66,234.96,234.91,20.8]
[1759815765035,14.89303989,235.01,234.95,20.8]
[1759815765245,14.89303989,235.01,234.96,29.9]
[1759815765759,2.3297005,235.0,234.9,20.8]
[1759815765934,17.22395131,234.99,234.91,29.9]
[1759815766133,0.66,234.98,234.87,37.41758625]
[1759815766337,2.3297005,234.97,234.87,33.16]
[1759815766546,0.66,234.96,234.88,29.9]
[1759815766728,0.66,234.95,234.88,29.9]
[1759815766928,0.66,234.94,234.89,29.9]
[1759815767131,0.66,234.93,234.87,33.16]
[1759815767354,0.66,234.92,234.88,29.9]
[1759815767557,0.66,234.91,234.88,29.9]
[1759815767929,4.91704138,234.91,234.88,29.9]
[1759815769351,0.66,234.91,234.88,29.9]
[1759815769551,4.25677532,234.92,234.88,29.9]
[1759815769755,4.25677532,234.92,234.88,30.57]
[1759815769941,4.25677532,234.92,234.88,29.9]
[1759815769942,4.91677532,234.92,234.88,29.9]
[1759815770147,0.66,234.91,234.87,33.16]
[1759815770466,4.25677532,234.92,234.89,29.9]
[1759815771032,4.91677532,234.92,234.89,29.9]
[1759815771431,0.66,234.91,234.9,29.9]
[1759815773335,4.25677501,234.92,234.9,29.9]
[1759815773562,4.91677501,234.92,234.9,29.9]
[1759815774057,0.66,234.91,234.9,29.9]
[1759815774947,4.25677501,234.92,234.9,29.9]
[1759815775148,0.66,234.91,234.9,29.9]
[1759815776460,4.91694947,234.91,234.9,29.9]
[1759815776965,4.91694947,234.91,234.82,29.76447004]
[1759815777148,4.91694947,234.91,234.86,20.8]
[1759815777460,0.66,234.9,234.87,29.9]
[1759815777643,0.66,234.89,234.87,29.9]
[1759815778046,4.91738913,234.89,234.87,29.9]
[1759815778566,4.91738913,234.89,234.84,21.47]
[1759815778867,4.91738913,234.89,234.85,30.57]
[1759815779061,0.66,234.89,234.83,0.67]
[1759815779467,0.66,234.89,234.81,8.96470288]
[1759815779468,0.66,234.89,234.84,29.9]
[1759815779673,0.66,234.88,234.85,29.9]
[1759815779852,0.66,234.87,234.85,29.9]
[1759815780365,4.25779084,234.87,234.85,29.9]
[1759815780863,4.91731849,234.89,234.85,29.9]
[1759815781054,4.25676826,234.92,234.86,0.67]
[1759815782844,4.97676826,234.92,234.86,0.67]
[1759815783147,4.97676826,234.92,234.85,29.9]
[1759815783346,0.72,234.91,234.85,29.9]
[1759815784269,4.25713069,234.9,234.85,29.9]
[1759815784444,0.72,234.89,234.83,20.8]
[1759815784648,0.72,234.89,234.84,29.9]
[1759815784869,0.72,234.88,234.84,29.9]
[1759815785482,0.72,234.87,234.84,29.9]
[1759815786174,4.25694947,234.91,234.85,0.7]
[1759815787755,4.97694947,234.91,234.85,0.7]
[1759815788379,4.97694947,234.91,234.84,30.6]
[1759815789873,14.89808819,234.93,234.84,30.6]
[1759815790174,0.72,234.9,234.84,30.6]
[1759815791966,4.25731193,234.89,234.84,30.6]
[1759815792168,4.97731193,234.89,234.84,30.6]
[1759815792371,4.25701596,234.91,234.85,0.7]
[1759815792755,4.25622472,234.95,234.85,0.7]
[1759815792963,0.72,234.94,234.86,29.9]
[1759815793164,0.72,234.94,234.86,30.6]
[1759815793356,0.72,234.93,234.86,30.6]
[1759815793653,0.72,234.92,234.86,30.6]
[1759815793973,4.25694947,234.91,234.86,29.9]
[1759815794276,4.97694947,234.91,234.87,0.7]
[1759815795545,4.25694947,234.91,234.87,0.7]
[1759815795765,4.97694947,234.91,234.87,0.7]
[1759815796170,4.97694947,234.91,234.86,29.9]
[1759815796682,4.97694947,234.91,234.87,0.7]
[1759815797066,4.97694947,234.91,234.88,29.9]
[1759815797388,4.97694947,234.91,234.89,29.9]
[1759815797677,4.25694947,234.91,234.9,29.9]
[1759815798274,4.97694947,234.91,234.9,29.9]
[1759815799273,4.97694947,234.91,234.85,0.7]
[1759815799781,4.97694947,234.91,234.86,29.9]
[1759815800073,0.72,234.9,234.86,29.9]
[1759815800293,4.97724174,234.9,234.86,30.6]
[1759815800462,4.97724174,234.9,234.86,29.9]
[1759815800981,4.25724174,234.9,234.87,0.7]
[1759815801182,4.25683785,234.92,234.87,0.7]
[1759815801370,4.25683785,234.92,234.88,0.7]
[1759815801570,4.25683785,234.92,234.86,30.6]
[1759815801571,4.97683785,234.92,234.86,30.6]
[1759815801874,4.97683785,234.92,234.86,0.7]
[1759815802080,4.97683785,234.92,234.87,29.9]
[1759815802258,0.72,234.91,234.86,20.8]
[1759815802463,0.72,234.91,234.87,29.9]
[1759815802779,0.72,234.9,234.88,29.9]
[1759815802976,10.64172051,234.93,234.89,29.9]
[1759815803485,4.25694947,234.91,234.89,29.9]
[1759815803685,0.72,234.9,234.89,29.9]
[1759815804267,4.25694947,234.91,234.89,29.9]
[1759815804483,4.97694947,234.91,234.89,29.9]
[1759815804679,0.72,234.9,234.89,29.9]
[1759815805085,0.72,234.9,234.86,0.7]
[1759815805383,0.72,234.9,234.87,29.9]
[1759815805575,0.72,234.9,234.86,0.7]
[1759815805768,0.72,234.9,234.87,29.9]
[1759815806097,4.97694947,234.91,234.87,29.9]
[1759815808199,4.25677802,234.92,234.87,29.9]
[1759815808502,4.97652537,234.94,234.88,0.7]
[1759815810571,15.61754009,234.94,234.87,29.9]
[1759815810771,0.72,234.93,234.87,29.9]
[1759815810968,0.72,234.96,234.88,0.7]
[1759815811585,0.72,234.96,234.89,10.63961589]
[1759815811792,0.72,234.96,234.9,0.68]
[1759815812013,0.72,234.96,234.91,29.9]
[1759815812300,4.25622472,234.95,234.91,30.58]
[1759815813205,4.25622472,234.95,234.91,29.9]
[1759815813388,4.25603246,234.97,234.92,0.68]
[1759815813573,4.92603246,234.97,234.92,0.68]
[1759815813773,0.67,234.96,234.91,29.9]
[1759815814073,0.67,234.96,234.91,30.58]
[1759815814405,4.92626358,234.95,234.91,30.58]
[1759815814581,0.67,234.94,234.86,4.70594278]
[1759815814773,0.67,234.93,234.87,29.9]
[1759815814973,0.67,234.92,234.85,18.16195794]
[1759815815192,0.67,234.91,234.86,29.9]
[1759815815388,0.67,234.9,234.86,29.9]
[1759815816499,14.89805473,234.93,234.86,29.9]
[1759815816702,0.67,234.89,234.86,29.9]
[1759815817201,0.66,234.92,234.86,29.9]
[1759815817384,17.50589326,234.93,234.86,29.9]
[1759815817579,0.66,234.91,234.86,29.9]
[1759815818007,0.66,234.9,234.86,29.9]
[1759815818576,4.91730072,234.9,234.86,30.61]
[1759815819425,4.91730072,234.9,234.86,29.9]
[1759815820384,4.25676826,234.92,234.87,0.71]
[1759815820588,4.25676826,234.92,234.88,0.71]
[1759815820909,4.25676826,234.92,234.89,29.9]
[1759815821080,4.91676826,234.92,234.89,29.9]
[1759815821682,0.66,234.91,234.89,29.9]
[1759815822516,4.25713069,234.9,234.89,29.9]
[1759815823484,4.25713069,234.9,234.86,0.71]
[1759815823804,4.25713069,234.9,234.87,30.61]
[1759815824204,4.91713069,234.9,234.88,29.9]
[1759815824706,4.25713069,234.9,234.88,29.9]
[1759815826513,10.64146767,234.93,234.88,29.9]
[1759815826807,0.66,234.91,234.88,29.9]
[1759815827403,10.64146767,234.93,234.88,29.9]
[1759815827600,0.66,234.92,234.88,29.9]
[1759815828109,0.66,234.91,234.88,29.9]
[1759815828515,0.66,234.9,234.88,29.9]
[1759815828904,4.25731193,234.89,234.88,29.9]
[1759815832114,4.25694947,234.91,234.88,29.9]
[1759815832691,4.91694947,234.91,234.88,29.9]
[1759815833117,4.25694947,234.91,234.88,29.9]
[1759815833317,15.55805473,234.93,234.88,30.61]
[1759815833496,0.66,234.92,234.88,30.61]
[1759815833909,0.66,234.91,234.88,29.9]
[1759815835535,4.25713069,234.9,234.88,29.9]
[1759815837024,4.91713069,234.9,234.88,29.9]
[1759815837203,4.91713069,234.9,234.85,25.50594278]
[1759815837409,4.91713069,234.9,234.86,29.88]
[1759815838318,0.66,234.89,234.84,4.70594278]
[1759815838523,0.66,234.88,234.85,29.88]
[1759815838725,0.66,234.87,234.85,29.88]
[1759815839102,17.50779595,234.9,234.83,4.70594278]
[1759815839299,0.66,234.89,234.84,29.88]
[1759815839523,4.91749318,234.88,234.84,29.88]
[1759815839720,0.66,234.87,234.84,29.88]
[1759815840721,4.25785574,234.86,234.84,29.88]
[1759815841028,0.66,234.89,234.84,30.59]
[1759815841212,4.25731193,234.89,234.84,30.59]
[1759815841412,4.91731193,234.89,234.84,30.59]
[1759815841802,0.66,234.88,234.84,30.59]
[1759815842112,4.25767445,234.87,234.84,30.59]
[1759815842317,4.25767445,234.87,234.85,29.88]
[1759815843415,4.25748705,234.89,234.86,0.71]
[1759815843934,4.91748705,234.89,234.85,29.88]
[1759815844104,4.91748705,234.89,234.85,30.59]
[1759815844426,14.89995742,234.9,234.86,0.71]
[1759815844732,15.55995742,234.9,234.85,29.88]
[1759815844933,1.66989159,234.93,234.86,0.71]
[1759815844934,11.30160934,234.93,234.86,0.71]
[1759815845104,4.25676826,234.92,234.86,0.71]
[1759815845427,4.25676826,234.92,234.86,13.48710343]
[1759815845605,4.25676826,234.92,234.87,0.71]
[1759815845806,4.25676826,234.92,234.88,30.59]
[1759815846421,4.25676826,234.92,234.89,0.71]
[1759815846615,4.25640589,234.94,234.88,29.88]
[1759815846805,4.25640589,234.94,234.89,0.71]
[1759815847120,4.91568133,234.98,234.91,20.8]
[1759815847315,4.91568133,234.98,234.92,30.59]
[1759815850006,4.91568133,234.98,234.92,41.2285702]
[1759815850509,4.91568133,234.98,234.92,30.59]
[1759815850927,4.91568133,234.98,234.93,0.71]
[1759815851730,0.66,234.97,234.92,29.88]
[1759815851934,0.66,234.96,234.92,29.88]
[1759815852141,1.66989159,234.99,234.92,29.88]
[1759815852440,0.66,234.96,234.92,29.88]
[1759815852731,0.66,234.95,234.93,29.88]
[1759815853036,0.66,234.95,234.94,29.88]
[1759815854438,0.66,234.97,234.94,29.88]
[1759815854621,0.66,234.96,234.94,29.88]
[1759815854933,4.25622472,234.95,234.94,29.88]
[1759815855335,4.25604297,234.97,234.94,29.88]
[1759815855717,4.25604297,234.97,234.95,0.71]
[1759815856112,4.25567993,234.99,234.94,29.88]
[1759815856316,4.25567993,234.99,234.95,0.71]
[1759815856526,4.91567993,234.99,234.95,0.71]
[1759815856839,4.91567993,234.99,234.94,29.88]
[1759815857008,4.91567993,234.99,234.95,0.71]
[1759815858009,4.25567993,234.99,234.94,29.88]
[1759815858212,4.25567993,234.99,234.95,0.71]
[1759815858437,4.25531914,235.0,234.95,0.71]
[1759815858638,0.66,234.99,234.95,0.71]
[1759815859926,0.66,234.99,234.94,30.59]
[1759815860341,0.66,234.99,234.94,29.88]
[1759815860518,4.25568133,234.98,234.95,0.71]
[1759815860719,4.25513807,235.01,234.95,0.71]
[1759815861139,4.25513807,235.01,234.95,13.48166393]
[1759815861437,4.25513807,235.01,234.96,0.71]
[1759815862850,4.25513807,235.01,234.97,0.71]
[1759815863016,0.66,235.0,234.98,29.86]
[1759815863220,0.66,235.0,234.99,29.86]
[1759815863420,4.25513807,235.01,234.99,29.86]
[1759815863733,4.91513807,235.01,234.99,29.86]
[1759815864653,4.25513807,235.01,234.99,29.86]
[1759815867847,4.91513807,235.01,234.99,29.86]
[1759815868837,4.91513807,235.01,234.93,20.8]
[1759815868838,0.66,235.0,234.93,20.8]
[1759815869041,0.66,234.99,234.94,40.49718849]
[1759815869434,14.89298326,235.01,234.95,0.71]
[1759815869634,15.55298326,235.01,234.95,0.71]
[1759815871535,15.55298326,235.01,234.96,29.86]
[1759815871734,0.69,235.0,234.96,29.86]
[1759815871935,0.69,234.99,234.96,29.86]
[1759815872137,1.66989159,234.97,234.9,33.16]
[1759815872352,1.66989159,234.95,234.9,33.16]
[1759815872552,0.69,234.94,234.91,29.86]
[1759815872742,1.66989159,234.95,234.91,29.86]
[1759815872743,0.69,234.93,234.91,29.86]
[1759815873062,1.66989159,234.95,234.91,29.86]
[1759815873063,0.69,234.92,234.91,29.86]
[1759815873558,0.69,234.94,234.91,29.86]
[1759815873855,0.69,234.93,234.91,29.86]
[1759815874546,0.69,234.93,234.92,29.86]
[1759815876451,4.94658706,234.93,234.92,29.86]
[1759815880753,17.25794632,234.93,234.92,29.84]
[1759815881565,17.25794632,234.93,234.84,20.8]
[1759815881751,0.68,234.92,234.85,29.84]
[1759815881958,1.66989159,234.9,234.84,21.45]
[1759815882267,0.68,234.89,234.85,29.86]
[1759815882763,4.25749318,234.88,234.85,29.86]
[1759815882961,4.25749318,234.88,234.86,29.86]
[1759815883152,0.68,234.87,234.86,29.86]
[1759815883348,0.68,234.87,234.86,29.84]
[1759815884057,14.90122615,234.88,234.86,29.84]
[1759815884264,15.58122615,234.88,234.86,29.84]
[1759815884567,4.25749318,234.88,234.86,29.84]
[1759815884861,4.25713069,234.9,234.86,30.49]
[1759815885351,4.25713069,234.9,234.86,29.84]
[1759815885352,4.93713069,234.9,234.86,29.84]
[1759815885664,0.68,234.89,234.86,29.84]
[1759815887058,4.25749318,234.88,234.86,29.84]
[1759815890169,14.89995742,234.9,234.86,29.84]
[1759815890349,14.89995742,234.9,234.86,30.49]
[1759815890662,0.68,234.89,234.86,29.84]
[1759815891560,16.56984901,234.9,234.86,29.84]
[1759815891769,20.8,234.87,234.72,0.65]
[1759815891963,1.66989159,234.76,234.73,7.0]
[1759815892150,4.26003237,234.74,234.73,7.0]
[1759815892759,6.60992396,234.74,234.73,7.0]
[1759815893083,4.94003237,234.74,234.73,7.0]
[1759815893262,6.60992396,234.74,234.73,29.88]
[1759815893657,10.87647521,234.69,234.67,0.2]
[1759815893843,12.5463668,234.68,234.67,1e-08]
[1759815894044,13.2263668,234.68,234.67,1e-08]
[1759815894271,17.48748832,234.68,234.67,1e-08]
[1759815894562,28.61050093,234.68,234.67,1e-08]
[1759815894772,6.61101311,234.68,234.67,1e-08]
[1759815895292,4.94112152,234.68,234.67,1e-08]
[1759815895468,6.61101311,234.68,234.67,1e-08]
[1759815895650,4.26112152,234.68,234.67,1e-08]
[1759815896948,6.61101311,234.68,234.67,1e-08]
[1759815897148,5.93080482,234.7,234.67,30.04000001]
[1759815897496,4.26091323,234.7,234.67,30.04000001]
[1759815897776,4.26091323,234.7,234.67,30.69000001]
[1759815898280,4.26054858,234.72,234.68,0.65]
[1759815901355,4.26054858,234.72,234.67,30.04000001]
[1759815901555,4.26054858,234.72,234.67,30.71000001]
[1759815902673,4.26054858,234.72,234.68,0.67]
[1759815902865,4.94017335,234.74,234.68,0.67]
[1759815904071,4.94017335,234.74,234.67,30.04000001]
[1759815905076,4.94017335,234.74,234.67,30.71000001]
[1759815905968,0.71,234.73,234.67,30.71000001]
[1759815906170,0.71,234.73,234.67,1e-08]
[1759815906171,2.6125397,234.71,234.67,1e-08]
[1759815906481,2.6125397,234.69,234.68,18.48]
[1759815906665,3.3225397,234.69,234.68,18.48]
[1759815906989,3.3225397,234.69,234.67,1e-08]
[1759815907197,6.87366122,234.68,234.67,1e-08]
[1759815907360,6.87366122,234.68,234.67,23.82000001]
[1759815907561,18.46013643,234.68,234.67,23.82000001]
[1759815908076,18.46013643,234.68,234.67,30.02000001]
[1759815909875,18.46013643,234.68,234.67,1e-08]
[1759815910379,15.84759673,234.68,234.67,1e-08]
[1759815910601,18.46013643,234.68,234.67,1e-08]
[1759815911386,15.84759673,234.68,234.67,1e-08]
[1759815911574,18.46013643,234.68,234.67,1e-08]
[1759815912671,15.84759673,234.68,234.67,1e-08]
[1759815912869,18.46013643,234.68,234.67,1e-08]
[1759815913264,31.25304063,234.68,234.67,1e-08]
[1759815916394,18.46013643,234.68,234.67,1e-08]
[1759815917782,20.16585699,234.68,234.67,1e-08]
[1759815918189,16.84331729,234.68,234.67,1e-08]
[1759815918391,15.13759673,234.68,234.67,1e-08]
[1759815918588,17.75013643,234.68,234.67,1e-08]
[1759815919200,2.6125397,234.7,234.67,0.67000001]
[1759815919570,2.6125397,234.7,234.67,1e-08]
[1759815919780,6.87311658,234.71,234.68,0.67]
[1759815919999,4.26057688,234.71,234.68,0.67]
[1759815920205,13.50017714,234.74,234.69,0.67]
[1759815920206,12.79017714,234.74,234.69,0.67]
[1759815920378,15.13632611,234.75,234.69,0.67]
[1759815921291,2.6125397,234.71,234.7,29.98]
[1759815921472,2.6125397,234.72,234.7,29.98]
[1759815921672,13.48901491,234.73,234.7,29.98]
[1759815921899,3.3225397,234.74,234.7,29.98]
[1759815922277,4.26021386,234.73,234.7,29.98]
[1759815923793,4.26021386,234.73,234.71,0.67]
[1759815923985,4.26021386,234.73,234.72,0.67]
[1759815924187,4.26021386,234.73,234.7,29.98]
[1759815924403,4.26021386,234.73,234.71,0.67]
[1759815924913,4.25984664,234.76,234.72,0.67]
[1759815925092,4.25984664,234.76,234.73,0.67]
[1759815926300,21.52434519,234.79,234.67,1e-08]
[1759815926301,13.48901491,234.74,234.67,1e-08]
[1759815926607,2.6125397,234.7,234.68,29.96]
[1759815926782,11.58647521,234.72,234.69,20.52]
[1759815926984,2.6125397,234.7,234.69,20.52]
[1759815927307,14.19901491,234.7,234.69,29.98]
[1759815928902,18.45977332,234.7,234.69,29.98]
[1759815929693,18.45977332,234.7,234.67,1e-08]
[1759815929694,29.11166935,234.7,234.67,1e-08]
[1759815929886,26.49912965,234.7,234.68,25.64]
[1759815930089,14.91265444,234.7,234.68,25.64]
[1759815930805,10.65189603,234.7,234.68,25.64]
[1759815931104,13.26443573,234.7,234.68,26.31]
[1759815931499,2.6125397,234.71,234.68,26.31]
[1759815931677,6.87293506,234.72,234.69,0.68]
[1759815931883,2.6125397,234.7,234.68,25.64]
[1759815932510,14.91138377,234.72,234.68,25.64]
[1759815932801,2.6125397,234.7,234.68,25.64]
[1759815933003,2.6125397,234.71,234.68,25.64]
[1759815933900,14.91138377,234.72,234.68,25.64]
[1759815934095,13.26352811,234.72,234.68,25.64]
[1759815934302,2.6125397,234.71,234.68,25.64]
[1759815935082,2.6125397,234.71,234.68,26.32]
[1759815935702,31.67647521,234.77,234.68,26.32]
[1759815935703,4.25930658,234.78,234.71,20.8]
[1759815935890,4.25930658,234.78,234.72,0.68]
[1759815936088,17.52034189,234.78,234.72,0.68]
[1759815936697,14.90780219,234.78,234.72,0.68]
[1759815937915,13.26103531,234.78,234.72,0.68]
[1759815938214,13.26103531,234.78,234.73,29.96]
[1759815938415,13.26103531,234.78,234.73,30.68]
[1759815938613,2.6125397,234.74,234.68,0.72]
[1759815938790,2.6125397,234.72,234.69,29.98]
[1759815938986,3.3025397,234.72,234.69,29.98]
[1759815940318,4.26057688,234.71,234.69,29.98]
[1759815941613,2.6125397,234.72,234.69,29.98]
[1759815942420,2.6125397,234.71,234.67,1e-08]
[1759815942601,0.69,234.71,234.68,29.96]
[1759815942795,14.91080236,234.73,234.68,29.96]
[1759815942796,2.6125397,234.69,234.68,29.96]
[1759815943114,3.3025397,234.69,234.68,29.96]
[1759815943814,7.56347966,234.69,234.68,29.96]
[1759815945322,4.95093996,234.69,234.68,29.96]
[1759815945518,7.56347966,234.69,234.68,29.96]
[1759815946632,6.87347966,234.69,234.68,29.96]
[1759815946835,4.26093996,234.69,234.68,30.68]
[1759815947046,4.26093996,234.69,234.68,29.96]
[1759815948143,4.26075841,234.7,234.68,29.96]
[1759815948331,3.3025397,234.69,234.68,29.96]
[1759815948939,2.6125397,234.69,234.68,29.96]
[1759815949450,6.87329811,234.7,234.68,29.96]
[1759815950433,17.52455878,234.71,234.68,29.96]
[1759815950745,14.91201908,234.71,234.68,29.96]
[1759815951944,4.26057688,234.71,234.69,0.72]
[1759815953242,4.26021386,234.73,234.69,0.72]
[1759815953637,0.69,234.82,234.71,20.8]
[1759815953841,25.78277844,234.8,234.72,0.72]
[1759815955057,26.47277844,234.8,234.72,0.72]
[1759815956756,15.59630323,234.8,234.72,0.72]
[1759815957544,18.20884293,234.8,234.67,1e-08]
[1759815957744,2.6125397,234.79,234.71,20.8]
[1759815957945,2.6125397,234.77,234.67,1e-08]
[1759815958146,2.6125397,234.77,234.72,29.96]
[1759815958453,3.3025397,234.76,234.67,21.52000001]
[1759815958756,3.3025397,234.75,234.68,29.96]
[1759815958936,0.69,234.74,234.68,29.96]
[1759815959531,0.69,234.76,234.68,30.68]
[1759815959734,10.87647521,234.77,234.69,0.72]
[1759815959943,14.90884306,234.76,234.69,0.72]
[1759815960378,3.3025397,234.75,234.68,29.96]
[1759815960539,0.69,234.74,234.69,29.98]
[1759815960747,3.3025397,234.74,234.69,29.98]
[1759815960962,2.6125397,234.75,234.69,29.98]